[Event "Irish New Year Events-IM1 2020"]
[Site "Dublin"]
[Date "2020.01.03"]
[Round "1.7"]
[White "Delaney, Killian"]
[Black "Venkatesan, Kavin"]
[Result "1-0"]
[ECO "B23"]
[WhiteElo "2278"]
[BlackElo "1815"]
[Annotator "RC"]
[PlyCount "67"]
[EventDate "2020.01.02"]
[EventType "tourn"]
[EventCountry "IRL"]
[SourceTitle "playchess.com"]
[Source "ChessBase"]
[SourceQuality "1"]
[TimeControl "40/5400+30:1800+30"]

1. e4 {[%emt 0:00:00]} c5 {[%emt 0:00:00]} 2. Nc3 {[%emt 0:00:00]} a6 {[%emt 0:00:05]} 3. g3 {[%emt 0:00:00]} b5 {[%emt 0:01:00]} 4. Bg2 {[%emt 0:00:15]} Bb7 {[%emt 0:00:07]} 5. d3 {[%emt 0:00:14]} e6 {[%emt 0:01:03]} 6. Nh3 {[%emt 0:01:20]} d6 {[%emt 0:01:59]} 7. O-O {[%emt 0:00:44]} Nf6 {[%emt 0:04:48]} 8. f4 {[%emt 0:01:16]} Be7 {[%emt 0:01:47]} 9. e5 {[%emt 0:08:33]} Bxg2 {[%emt 0:00:50]} 10. Kxg2 {[%emt 0:00:08]} dxe5 {[%emt 0:02:47]} 11. fxe5 {[%emt 0:00:15]} Nd5 {[%emt 0:00:11]} 12. Qg4 {[%emt 0:00:35]} O-O {[%emt 0:04:48]} 13. Bh6 {[%emt 0:01:59]} g6 {[%emt 0:00:07]} 14. Qf3 {[%emt 0:00:15]} f5 {[%emt 0:01:47]} 15. Bxf8 {[%emt 0:02:46]} Bxf8 {[%emt 0:00:03]} 16. Nxd5 {[%emt 0:04:51]} exd5 {[%emt 0:00:19]} 17. Nf4 {[%emt 0:02:08]} Nc6 {[%emt 0:01:29]} 18. Qxd5+ {[%emt 0:03:43]} Qxd5+ {[%emt 0:00:39]} 19. Nxd5 {[%emt 0:00:05]} Nxe5 {[%emt 0:00:23]} 20. Rae1 {[%emt 0:02:50]} Bg7 {[%emt 0:01:05]} 21. Re2 {[%emt 0:04:55]} Rd8 {[%emt 0:00:41]} 22. Nc7 {[%emt 0:00:36]} Nc6 {[%emt 0:03:44]} 23. Ne6 {[%emt 0:09:08]} Re8 {[%emt 0:05:13]} 24. c3 {[%emt 0:00:45]} Kf7 {[%emt 0:01:47]} 25. Ng5+ {[%emt 0:00:23]} Kf8 {[%emt 0:00:09]} 26. Nxh7+ {[%emt 0:00:07]} Kf7 {[%emt 0:00:08]} 27. Ng5+ {[%emt 0:00:06]} Kf8 {[%emt 0:00:07]} 28. Rxe8+ {[%emt 0:00:30]} Kxe8 {[%emt 0:00:02]} 29. Re1+ {[%emt 0:00:08]} Kd7 {[%emt 0:00:11]} 30. Ne6 {[%emt 0:00:13]} Be5 {[%emt 0:00:51]} 31. Nxc5+ {[%emt 0:00:14]} Kc7 {[%emt 0:00:12]} 32. d4 {[%emt 0:01:08]} Bd6 {[%emt 0:00:34]} 33. Nxa6+ {[%emt 0:00:13]} Kb6 {[%emt 0:00:22]} 34. Re6 {[%emt 0:00:14]} 1-0

[Event "Irish New Year Events-IM1 2020"]
[Site "Dublin"]
[Date "2020.01.03"]
[Round "1.10"]
[White "O`Donnell, Conor"]
[Black "Hammar, Bengt"]
[Result "1-0"]
[ECO "E89"]
[WhiteElo "2307"]
[BlackElo "2175"]
[Annotator "RC"]
[PlyCount "145"]
[EventDate "2020.01.02"]
[EventType "tourn"]
[EventCountry "IRL"]
[SourceTitle "playchess.com"]
[Source "ChessBase"]
[SourceQuality "1"]
[TimeControl "40/5400+30:1800+30"]

1. d4 {[%emt 0:00:00]} Nf6 {[%emt 0:00:00]} 2. c4 {[%emt 0:00:00]} g6 {[%emt 0:01:02]} 3. f3 {[%emt 0:00:07]} Bg7 {[%emt 0:02:03]} 4. e4 {[%emt 0:00:12]} d6 {[%emt 0:00:09]} 5. Nc3 {[%emt 0:00:16]} e5 {[%emt 0:02:25]} 6. Nge2 {[%emt 0:00:45]} O-O {[%emt 0:00:24]} 7. Be3 {[%emt 0:00:23]} c6 {[%emt 0:01:22]} 8. Qd2 {[%emt 0:00:32]} Nbd7 {[%emt 0:00:54]} 9. d5 {[%emt 0:00:24]} cxd5 {[%emt 0:02:28]} 10. cxd5 {[%emt 0:00:12]} a6 {[%emt 0:01:03]} 11. g4 {[%emt 0:00:35]} h5 {[%emt 0:04:08]} 12. g5 {[%emt 0:01:47]} Nh7 {[%emt 0:00:16]} 13. Nc1 {[%emt 0:00:48]} f6 {[%emt 0:13:11]} 14. gxf6 {[%emt 0:02:28]} Qxf6 {[%emt 0:03:10]} 15. Be2 {[%emt 0:01:39]} Qh4+ {[%emt 0:02:00]} 16. Kd1 {[%emt 0:01:24]} Rf7 {[%emt 0:02:54]} 17. Kc2 {[%emt 0:04:40]} Ndf8 {[%emt 0:01:41]} 18. Nb3 {[%emt 0:02:57]} Qd8 {[%emt 0:03:07]} 19. Rac1 {[%emt 0:02:10]} Bd7 {[%emt 0:03:51]} 20. a4 {[%emt 0:06:20]} Bf6 {[%emt 0:15:18]} 21. Rhg1 {[%emt 0:02:07]} Rc8 {[%emt 0:01:34]} 22. Kb1 {[%emt 0:03:49]} Qe8 {[%emt 0:00:50]} 23. a5 {[%emt 0:00:55]} Bd8 {[%emt 0:00:43]} 24. Na2 {[%emt 0:12:50]} Rxc1+ {[%emt 0:01:21]} 25. Nbxc1 {[%emt 0:04:07]} Bb5 {[%emt 0:02:33]} 26. Bd1 {[%emt 0:00:40]} Ba4 {[%emt 0:03:46]} 27. b3 {[%emt 0:01:42]} Bb5 {[%emt 0:00:17]} 28. Qb4 {[%emt 0:02:48]} Qe7 {[%emt 0:02:31]} 29. Nc3 {[%emt 0:03:25]} Be8 {[%emt 0:00:07]} 30. Nd3 {[%emt 0:06:20]} Qc7 {[%emt 0:01:46]} 31. Bb6 {[%emt 0:02:24]} Qe7 {[%emt 0:00:13]} 32. Nb2 {[%emt 0:11:48]} Bxb6 {[%emt 0:00:51]} 33. Qxb6 {[%emt 0:00:49]} Qc7 {[%emt 0:05:55]} 34. Nc4 {[%emt 0:08:07]} Qxb6 {[%emt 0:00:17]} 35. axb6 {[%emt 0:00:51]} Rd7 {[%emt 0:04:12]} 36. b4 {[%emt 0:00:57]} Rd8 {[%emt 0:01:43]} 37. Na5 {[%emt 0:03:21]} Rb8 {[%emt 0:00:01]} 38. Ba4 {[%emt 0:01:00]} Nf6 {[%emt 0:01:44]} 39. Bxe8 {[%emt 0:01:39]} Nxe8 {[%emt 0:00:08]} 40. Na4 {[%emt 0:02:36]} Kf7 {[%emt 0:01:48]} 41. Nb2 {[%emt 0:30:23]} Ke7 {[%emt 0:33:37]} 42. Nbc4 {[%emt 0:00:24]} Kd7 {[%emt 0:00:59]} 43. Kc2 {[%emt 0:00:13]} Ke7 {[%emt 0:01:28]} 44. Kd3 {[%emt 0:00:13]} Kf7 {[%emt 0:01:24]} 45. h4 {[%emt 0:00:05]} Nd7 {[%emt 0:00:14]} 46. Rf1 {[%emt 0:01:27]} Ke7 {[%emt 0:00:38]} 47. Rf2 {[%emt 0:00:27]} Nef6 {[%emt 0:02:42]} 48. Rg2 {[%emt 0:00:27]} Nf8 {[%emt 0:00:11]} 49. Rg1 {[%emt 0:01:17]} N6d7 {[%emt 0:00:13]} 50. Rb1 {[%emt 0:01:07]} Nf6 {[%emt 0:00:35]} 51. Rg1 {[%emt 0:02:15]} Ne8 {[%emt 0:00:34]} 52. Ra1 {[%emt 0:00:45]} Nd7 {[%emt 0:00:19]} 53. Ra2 {[%emt 0:00:31]} Kf7 {[%emt 0:00:29]} 54. Rg2 {[%emt 0:01:34]} Kf6 {[%emt 0:00:04]} 55. Kc3 {[%emt 0:01:57]} Kf7 {[%emt 0:00:34]} 56. Kb3 {[%emt 0:01:10]} Kf6 {[%emt 0:00:17]} 57. Ka4 {[%emt 0:00:15]} Rc8 {[%emt 0:00:38]} 58. Kb3 {[%emt 0:00:18]} Rb8 {[%emt 0:00:01]} 59. Rg1 {[%emt 0:00:30]} Kf7 {[%emt 0:00:01]} 60. Kc3 {[%emt 0:00:26]} Kf6 {[%emt 0:00:17]} 61. Kd3 {[%emt 0:00:44]} Kf7 {[%emt 0:00:02]} 62. Rf1 {[%emt 0:00:29]} Ke7 {[%emt 0:00:04]} 63. Ke3 {[%emt 0:00:19]} Rc8 {[%emt 0:01:28]} 64. Rb1 {[%emt 0:01:04]} Rb8 {[%emt 0:00:02]} 65. b5 {[%emt 0:00:28]} axb5 {[%emt 0:00:10]} 66. Rxb5 {[%emt 0:00:02]} Nef6 {[%emt 0:01:25]} 67. Nb3 {[%emt 0:03:27]} Ne8 {[%emt 0:01:49]} 68. Ra5 {[%emt 0:00:30]} Kd8 {[%emt 0:03:35]} 69. Ra7 {[%emt 0:00:24]} Nc5 {[%emt 0:00:19]} 70. Nxc5 {[%emt 0:00:14]} dxc5 {[%emt 0:00:02]} 71. Kd3 {[%emt 0:01:25]} Ke7 {[%emt 0:02:18]} 72. Nxe5 {[%emt 0:00:09]} Nd6 {[%emt 0:00:44]} 73. Nc6+ {[%emt 0:00:52]} 1-0

[Event "Irish New Year Events-IM1 2020"]
[Site "Dublin"]
[Date "2020.01.03"]
[Round "2.6"]
[White "Mannion, Stephen R"]
[Black "Hammar, Bengt"]
[Result "1/2-1/2"]
[ECO "B90"]
[WhiteElo "2283"]
[BlackElo "2175"]
[Annotator "ChessBase"]
[PlyCount "37"]
[EventDate "2020.01.02"]
[EventType "tourn"]
[EventCountry "IRL"]
[SourceTitle "playchess.com"]
[Source "ChessBase"]
[SourceQuality "1"]
[TimeControl "40/5400+30:1800+30"]

1. e4 {[%emt 0:00:00]} c5 {[%emt 0:00:00]} 2. Nf3 {[%emt 0:00:00]} d6 {[%emt 0:00:38]} 3. d4 {[%emt 0:00:00]} cxd4 {[%emt 0:00:07]} 4. Nxd4 {[%emt 0:00:00]} Nf6 {[%emt 0:00:14]} 5. Nc3 {[%emt 0:00:04]} a6 {[%emt 0:01:20]} 6. h3 {[%emt 0:00:11]} b5 {[%emt 0:07:00]} 7. a4 {[%emt 0:06:24]} b4 {[%emt 0:07:21]} 8. Nd5 {[%emt 0:00:24]} Nxe4 {[%emt 0:01:00]} 9. a5 {[%emt 0:28:11]} e6 {[%emt 0:09:48]} 10. Nb6 {[%emt 0:09:21]} Ra7 {[%emt 0:00:20]} 11. Be3 {[%emt 0:00:19]} Rc7 {[%emt 0:01:53]} 12. Be2 {[%emt 0:05:52]} Bb7 {[%emt 0:09:45]} 13. O-O {[%emt 0:00:32]} d5 {[%emt 0:02:47]} 14. Bf3 {[%emt 0:15:02]} Be7 {[%emt 0:04:27]} 15. Bxe4 {[%emt 0:01:42]} dxe4 {[%emt 0:00:10]} 16. Qg4 {[%emt 0:01:42]} O-O {[%emt 0:05:22]} 17. Rad1 {[%emt 0:01:40]} Qe8 {[%emt 0:03:06]} 18. Bf4 {[%emt 0:18:12]} Rc5 {[%emt 0:07:18]} 19. Nb3 {[%emt 0:00:03]} 1/2-1/2

[Event "Irish New Year Events-IM1 2020"]
[Site "Dublin"]
[Date "2020.01.03"]
[Round "2.7"]
[White "Waters, Michael"]
[Black "O`Donnell, Conor"]
[Result "0-1"]
[ECO "A34"]
[WhiteElo "2130"]
[BlackElo "2307"]
[Annotator "NA"]
[PlyCount "107"]
[EventDate "2020.01.02"]
[EventType "tourn"]
[EventCountry "IRL"]
[SourceTitle "playchess.com"]
[Source "ChessBase"]
[SourceQuality "1"]
[TimeControl "40/5400+30:1800+30"]

1. Nf3 {[%emt 0:00:13]} c5 {[%emt 0:01:13]} 2. e3 {[%emt 0:00:31]} g6 {[%emt 0:00:20]} 3. c4 {[%emt 0:00:28]} Nf6 {[%emt 0:01:14]} 4. Nc3 {[%emt 0:00:35]} Bg7 {[%emt 0:00:40]} 5. Be2 {[%emt 0:02:30]} O-O {[%emt 0:00:59]} 6. O-O {[%emt 0:00:34]} d5 {[%emt 0:03:30]} 7. cxd5 {[%emt 0:00:40]} Nxd5 {[%emt 1:25:34]} 8. Qb3 {[%emt 0:02:52]} Nc7 {[%emt 0:00:00]} 9. d4 {[%emt 0:00:46]} cxd4 {[%emt 0:00:00]} 10. exd4 {[%emt 0:00:25]} b6 {[%emt 0:00:00]} 11. Rd1 {[%emt 0:03:19]} Bb7 {[%emt 0:00:00]} 12. d5 {[%emt 0:03:48]} Nd7 {[%emt 0:00:00]} 13. d6 {[%emt 0:19:45]} exd6 {[%emt 0:00:00]} 14. Rxd6 {[%emt 0:02:16]} Qe7 {[%emt 0:00:00]} 15. Qd1 {[%emt 0:01:55]} Rad8 {[%emt 0:00:00]} 16. Bg5 {[%emt 0:05:45]} Nf6 {[%emt 0:00:00]} 17. Rxd8 {[%emt 0:01:47]} Rxd8 {[%emt 0:00:00]} 18. Qa4 {[%emt 0:02:07]} Ncd5 {[%emt 0:00:00]} 19. Nxd5 {[%emt 0:09:39]} Rxd5 {[%emt 0:00:00]} 20. Bc4 {[%emt 0:05:11]} Ra5 {[%emt 0:00:00]} 21. Qb3 {[%emt 0:03:33]} Bxf3 {[%emt 0:00:00]} 22. Bxf6 {[%emt 0:00:11]} Bxf6 {[%emt 0:00:00]} 23. Qxf3 {[%emt 0:01:44]} Bxb2 {[%emt 0:00:00]} 24. Rd1 {[%emt 0:00:52]} Rf5 {[%emt 0:00:00]} 25. Qd3 {[%emt 0:06:14]} Qc5 {[%emt 0:00:00]} 26. Rd2 {[%emt 0:02:58]} Bf6 {[%emt 0:00:00]} 27. g3 {[%emt 0:01:32]} Kg7 {[%emt 0:00:27]} 28. a4 {[%emt 0:03:52]} Rxf2 {[%emt 0:02:01]} 29. Rxf2 {[%emt 0:01:11]} Bd4 {[%emt 0:00:03]} 30. Kg2 {[%emt 0:03:17]} Bxf2 {[%emt 0:00:05]} 31. Qd5 {[%emt 0:00:21]} Qxd5+ {[%emt 0:01:01]} 32. Bxd5 {[%emt 0:00:05]} Bc5 {[%emt 0:02:08]} 33. g4 {[%emt 0:00:20]} h6 {[%emt 0:00:58]} 34. h4 {[%emt 0:00:35]} f5 {[%emt 0:01:25]} 35. gxf5 {[%emt 0:03:27]} gxf5 {[%emt 0:00:02]} 36. h5 {[%emt 0:00:41]} Kf6 {[%emt 0:00:17]} 37. Kf3 {[%emt 0:00:11]} Ke5 {[%emt 0:00:41]} 38. Bc4 {[%emt 0:00:58]} f4 {[%emt 0:02:25]} 39. Bb5 {[%emt 0:00:27]} Be7 {[%emt 0:00:18]} 40. Bf1 {[%emt 0:02:04]} Bg5 {[%emt 0:00:10]} 41. Ba6 {[%emt 0:30:25]} Kd4 {[%emt 0:30:18]} 42. Bb5 {[%emt 0:00:19]} Kd5 {[%emt 0:02:04]} 43. Ba6 {[%emt 0:01:30]} Kc5 {[%emt 0:00:14]} 44. Ke4 {[%emt 0:00:10]} Kb4 {[%emt 0:00:09]} 45. Bb5 {[%emt 0:00:21]} a6 {[%emt 0:01:03]} 46. Bxa6 {[%emt 0:01:21]} Kxa4 {[%emt 0:00:03]} 47. Bb7 {[%emt 0:00:27]} Kb3 {[%emt 0:01:44]} 48. Kd3 {[%emt 0:00:49]} b5 {[%emt 0:00:48]} 49. Bf3 {[%emt 0:02:51]} b4 {[%emt 0:01:08]} 50. Bd1+ {[%emt 0:04:07]} Ka2 {[%emt 0:00:20]} 51. Kc4 {[%emt 0:01:51]} Be7 {[%emt 0:00:04]} 52. Bf3 {[%emt 0:01:11]} b3 {[%emt 0:01:11]} 53. Kd3 {[%emt 0:00:52]} b2 {[%emt 0:00:25]} 54. Kd4 {[%emt 0:00:00]} 0-1

[Event "Irish New Year Events-IM1 2020"]
[Site "Dublin"]
[Date "2020.01.03"]
[Round "2.8"]
[White "Ahlander, Bjorn"]
[Black "Kanyamarala, Tarun"]
[Result "1/2-1/2"]
[ECO "E04"]
[WhiteElo "2418"]
[BlackElo "2320"]
[Annotator "ChessBase"]
[PlyCount "94"]
[EventDate "2020.01.02"]
[EventType "tourn"]
[EventCountry "IRL"]
[SourceTitle "playchess.com"]
[Source "ChessBase"]
[SourceQuality "1"]
[TimeControl "40/5400+30:1800+30"]

1. d4 {[%emt 0:00:00]} Nf6 {[%emt 0:00:00]} 2. c4 {[%emt 0:00:00]} e6 {[%emt 0:00:00]} 3. g3 {[%emt 0:00:00]} d5 {[%emt 0:00:30]} 4. Nf3 {[%emt 0:00:00]} dxc4 {[%emt 0:00:46]} 5. Bg2 {[%emt 0:00:19]} Bd7 {[%emt 0:00:38]} 6. Ne5 {[%emt 0:00:51]} Bc6 {[%emt 0:00:18]} 7. Nxc6 {[%emt 0:00:06]} Nxc6 {[%emt 0:00:08]} 8. O-O {[%emt 0:00:38]} Qd7 {[%emt 0:00:47]} 9. Nc3 {[%emt 0:02:55]} O-O-O {[%emt 0:08:31]} 10. e3 {[%emt 0:00:08]} Nd5 {[%emt 0:06:48]} 11. Bd2 {[%emt 0:01:13]} Bb4 {[%emt 0:07:34]} 12. Rc1 {[%emt 0:10:08]} Bxc3 {[%emt 0:20:42]} 13. Bxc3 {[%emt 0:02:08]} h5 {[%emt 0:05:28]} 14. Qe2 {[%emt 0:02:59]} h4 {[%emt 0:01:34]} 15. e4 {[%emt 0:02:13]} Nxc3 {[%emt 0:03:02]} 16. bxc3 {[%emt 0:00:29]} Na5 {[%emt 0:03:34]} 17. Rb1 {[%emt 0:04:12]} Rh6 {[%emt 0:07:48]} 18. Qg4 {[%emt 0:06:39]} g6 {[%emt 0:00:44]} 19. Qg5 {[%emt 0:01:10]} Rh5 {[%emt 0:04:01]} 20. Qf6 {[%emt 0:00:03]} Nc6 {[%emt 0:10:40]} 21. Rb2 {[%emt 0:09:21]} Qe7 {[%emt 0:10:01]} 22. Qf3 {[%emt 0:00:03]} h3 {[%emt 0:03:36]} 23. Bh1 {[%emt 0:00:42]} Na5 {[%emt 0:02:17]} 24. Qe3 {[%emt 0:01:28]} Kb8 {[%emt 0:01:18]} 25. f4 {[%emt 0:01:10]} c6 {[%emt 0:01:01]} 26. e5 {[%emt 0:01:58]} Rd7 {[%emt 0:00:33]} 27. Be4 {[%emt 0:00:48]} Rh8 {[%emt 0:00:21]} 28. Rb4 {[%emt 0:00:41]} Rc8 {[%emt 0:00:36]} 29. Rfb1 {[%emt 0:00:11]} c5 {[%emt 0:00:16]} 30. Rb5 {[%emt 0:05:29]} cxd4 {[%emt 0:00:04]} 31. Qf3 {[%emt 0:01:05]} Rc5 {[%emt 0:00:16]} 32. cxd4 {[%emt 0:01:39]} Rxb5 {[%emt 0:01:17]} 33. Rxb5 {[%emt 0:00:03]} Qd8 {[%emt 0:00:46]} 34. Rb1 {[%emt 0:10:07]} b6 {[%emt 0:00:22]} 35. d5 {[%emt 0:05:55]} exd5 {[%emt 0:00:07]} 36. Bc2 {[%emt 0:00:03]} Qc7 {[%emt 0:00:37]} 37. e6 {[%emt 0:00:35]} fxe6 {[%emt 0:00:06]} 38. Bxg6 {[%emt 0:00:06]} Qc5+ {[%emt 0:00:13]} 39. Kh1 {[%emt 0:00:04]} Nc6 {[%emt 0:00:44]} 40. f5 {[%emt 0:00:50]} exf5 {[%emt 0:00:29]} 41. Bxf5 {[%emt 0:30:07]} Re7 {[%emt 0:30:48]} 42. Bxh3 {[%emt 0:00:42]} Kc7 {[%emt 0:00:37]} 43. Rf1 {[%emt 0:04:33]} Qd4 {[%emt 0:00:50]} 44. Qf8 {[%emt 0:00:25]} Qe4+ {[%emt 0:00:28]} 45. Bg2 {[%emt 0:00:07]} Qe5 {[%emt 0:00:17]} 46. Qg8 {[%emt 0:01:10]} Re6 {[%emt 0:00:55]} 47. Bh3 {[%emt 0:04:19]} Qe4+ {[%emt 0:00:08]} 1/2-1/2

[Event "Irish New Year Events-IM1 2020"]
[Site "Dublin"]
[Date "2020.01.03"]
[Round "2.8"]
[White "Melaugh, Shane"]
[Black "Ahlander, Bjorn"]
[Result "*"]
[ECO "E04"]
[WhiteElo "2207"]
[BlackElo "2418"]
[Annotator "NA RC"]
[PlyCount "20"]
[EventDate "2020.01.02"]
[EventType "tourn"]
[EventCountry "IRL"]
[SourceTitle "playchess.com"]
[Source "ChessBase"]
[SourceQuality "1"]
[TimeControl "40/5400+30:1800+30"]

1. d4 {[%emt 1:30:30]} Nf6 {[%emt 0:00:00]} 2. c4 {[%emt 0:00:00]} e6 {[%emt 0:00:00]} 3. g3 {[%emt 0:00:00]} d5 {[%emt 0:00:30]} 4. Nf3 {[%emt 0:00:00]} dxc4 {[%emt 0:00:46]} 5. Bg2 {[%emt 0:00:19]} Bd7 {[%emt 0:00:38]} 6. Ne5 {[%emt 0:00:51]} Bc6 {[%emt 0:00:18]} 7. Nxc6 {[%emt 0:00:06]} Nxc6 {[%emt 1:31:18]} 8. O-O {[%emt 0:00:38]} Qd7 {[%emt 0:00:47]} 9. Nc3 {[%emt 0:02:55]} O-O-O {[%emt 0:08:31]} 10. e3 {[%emt 0:00:08]} Nd5 {[%emt 0:06:48]} *

[Event "Irish New Year Events-IM1 2020"]
[Site "Dublin"]
[Date "2020.01.03"]
[Round "2.9"]
[White "Venkatesan, Kavin"]
[Black "Melaugh, Shane"]
[Result "0-1"]
[ECO "A91"]
[WhiteElo "1815"]
[BlackElo "2207"]
[Annotator "NA"]
[PlyCount "138"]
[EventDate "2020.01.02"]
[EventType "tourn"]
[EventCountry "IRL"]
[SourceTitle "playchess.com"]
[Source "ChessBase"]
[SourceQuality "1"]
[TimeControl "40/5400+30:1800+30"]

1. d4 {[%emt 0:00:00]} e6 {[%emt 0:16:03]} 2. c4 {[%emt 0:00:00]} f5 {[%emt 0:00:42]} 3. Nc3 {[%emt 0:00:35]} Nf6 {[%emt 0:01:55]} 4. g3 {[%emt 0:01:17]} Be7 {[%emt 0:00:06]} 5. Bg2 {[%emt 0:00:06]} O-O {[%emt 0:00:05]} 6. Nh3 {[%emt 0:01:22]} d6 {[%emt 0:00:22]} 7. O-O {[%emt 0:02:07]} Qe8 {[%emt 0:00:12]} 8. f4 {[%emt 0:01:57]} Nbd7 {[%emt 0:07:59]} 9. Re1 {[%emt 0:21:34]} e5 {[%emt 0:04:08]} 10. Ng5 {[%emt 0:05:27]} Bd8 {[%emt 0:05:35]} 11. dxe5 {[%emt 0:02:24]} dxe5 {[%emt 0:00:24]} 12. fxe5 {[%emt 0:02:14]} Nxe5 {[%emt 0:00:56]} 13. Bf4 {[%emt 0:01:48]} c6 {[%emt 0:00:33]} 14. c5 {[%emt 0:06:14]} h6 {[%emt 0:05:13]} 15. Bxe5 {[%emt 0:05:59]} hxg5 {[%emt 0:18:05]} 16. Qd4 {[%emt 0:06:30]} Ng4 {[%emt 0:10:33]} 17. Bd6 {[%emt 0:02:43]} Bf6 {[%emt 0:01:12]} 18. Qd2 {[%emt 0:02:21]} Be7 {[%emt 0:03:48]} 19. e3 {[%emt 0:07:19]} Be6 {[%emt 0:01:19]} 20. h3 {[%emt 0:04:05]} Bxd6 {[%emt 0:00:41]} 21. cxd6 {[%emt 0:00:09]} Ne5 {[%emt 0:00:04]} 22. b3 {[%emt 0:02:38]} Rd8 {[%emt 0:00:16]} 23. Qd4 {[%emt 0:01:57]} Nf7 {[%emt 0:00:24]} 24. Qxa7 {[%emt 0:01:24]} Nxd6 {[%emt 0:00:12]} 25. Rad1 {[%emt 0:00:51]} Qf7 {[%emt 0:03:02]} 26. Qc5 {[%emt 0:01:13]} Qc7 {[%emt 0:03:18]} 27. Bd5 {[%emt 0:04:37]} Bxd5 {[%emt 0:01:44]} 28. Nxd5 {[%emt 0:00:17]} Qf7 {[%emt 0:02:57]} 29. Nc3 {[%emt 0:01:55]} Qe6 {[%emt 0:00:22]} 30. Kh2 {[%emt 0:02:01]} Nf7 {[%emt 0:01:45]} 31. Rxd8 {[%emt 0:01:25]} Rxd8 {[%emt 0:00:07]} 32. Rd1 {[%emt 0:00:05]} Re8 {[%emt 0:00:35]} 33. Re1 {[%emt 0:01:36]} Ne5 {[%emt 0:00:15]} 34. Re2 {[%emt 0:00:38]} g4 {[%emt 0:01:27]} 35. h4 {[%emt 0:01:04]} Qd7 {[%emt 0:06:04]} 36. Kg2 {[%emt 0:00:59]} Nf3 {[%emt 0:00:13]} 37. Qc4+ {[%emt 0:00:30]} Kh8 {[%emt 0:00:38]} 38. a4 {[%emt 0:01:01]} Rd8 {[%emt 0:00:47]} 39. e4 {[%emt 0:01:25]} b5 {[%emt 0:01:16]} 40. axb5 {[%emt 0:00:40]} cxb5 {[%emt 0:00:03]} 41. Qxb5 {[%emt 0:30:32]} Qd4 {[%emt 0:30:06]} 42. Rf2 {[%emt 0:01:03]} Qxc3 {[%emt 0:01:48]} 43. Qxf5 {[%emt 0:00:18]} Qe1 {[%emt 0:00:25]} 44. Qxg4 {[%emt 0:00:22]} Qg1+ {[%emt 0:00:07]} 45. Kxf3 {[%emt 0:00:21]} Rf8+ {[%emt 0:00:04]} 46. Qf4 {[%emt 0:01:02]} Rxf4+ {[%emt 0:00:12]} 47. gxf4 {[%emt 0:00:02]} Qd1+ {[%emt 0:00:10]} 48. Kg3 {[%emt 0:00:29]} Qxb3+ {[%emt 0:00:03]} 49. Rf3 {[%emt 0:00:25]} Qc2 {[%emt 0:00:15]} 50. e5 {[%emt 0:00:13]} Qf5 {[%emt 0:00:05]} 51. Rf2 {[%emt 0:00:25]} Kh7 {[%emt 0:00:07]} 52. Re2 {[%emt 0:00:48]} Qe6 {[%emt 0:00:13]} 53. Rg2 {[%emt 0:01:07]} Kh6 {[%emt 0:07:35]} 54. Kf2 {[%emt 0:01:48]} Qf5 {[%emt 0:00:00]} 55. Kf3 {[%emt 0:00:30]} Qh3+ {[%emt 0:00:00]} 56. Rg3 {[%emt 0:00:26]} Qxh4 {[%emt 0:00:00]} 57. Rg5 {[%emt 0:00:24]} Qh1+ {[%emt 0:00:00]} 58. Ke3 {[%emt 0:00:30]} Qc1+ {[%emt 0:00:00]} 59. Kf3 {[%emt 0:00:12]} Qc3+ {[%emt 0:00:00]} 60. Ke4 {[%emt 0:00:59]} Qc6+ {[%emt 0:00:00]} 61. Ke3 {[%emt 0:00:24]} Qd5 {[%emt 0:00:00]} 62. Kf2 {[%emt 0:00:44]} Qe4 {[%emt 0:00:00]} 63. Rg4 {[%emt 0:00:44]} Kh5 {[%emt 0:00:00]} 64. Rg5+ {[%emt 0:01:04]} Kh4 {[%emt 0:00:00]} 65. Rxg7 {[%emt 0:01:25]} Qxf4+ {[%emt 0:00:00]} 66. Kg2 {[%emt 0:00:44]} Qxe5 {[%emt 0:00:00]} 67. Rh7+ {[%emt 0:00:37]} Kg4 {[%emt 0:00:00]} 68. Rh2 {[%emt 0:00:19]} Qe1 {[%emt 0:00:00]} 69. Rh1 {[%emt 0:01:12]} Qe2+ {[%emt 0:00:00]} 0-1

[Event "Irish New Year Events-IM1 2020"]
[Site "Dublin"]
[Date "2020.01.03"]
[Round "2.10"]
[White "Baker, Chris W"]
[Black "Delaney, Killian"]
[Result "0-1"]
[ECO "D02"]
[WhiteElo "2225"]
[BlackElo "2278"]
[Annotator "NA"]
[PlyCount "97"]
[EventDate "2020.01.02"]
[EventType "tourn"]
[EventCountry "IRL"]
[SourceTitle "playchess.com"]
[Source "ChessBase"]
[SourceQuality "1"]
[TimeControl "40/5400+30:1800+30"]

1. d4 {[%emt 0:00:00]} d5 {[%emt 0:00:00]} 2. Nf3 {[%emt 0:00:22]} Nc6 {[%emt 0:01:29]} 3. Bf4 {[%emt 0:07:45]} Bg4 {[%emt 0:00:31]} 4. e3 {[%emt 0:02:00]} e6 {[%emt 0:00:17]} 5. c3 {[%emt 0:06:47]} Bd6 {[%emt 0:01:13]} 6. Bg3 {[%emt 0:03:37]} Nf6 {[%emt 0:03:20]} 7. Nbd2 {[%emt 1:12:59]} Ne4 {[%emt 0:17:24]} 8. Qb3 {[%emt 0:00:00]} Nxd2 {[%emt 0:13:48]} 9. Nxd2 {[%emt 0:00:00]} Rb8 {[%emt 0:00:09]} 10. Bd3 {[%emt 0:00:00]} Bh5 {[%emt 0:01:28]} 11. O-O {[%emt 0:00:00]} Bg6 {[%emt 0:03:18]} 12. c4 {[%emt 0:00:00]} Na5 {[%emt 0:06:57]} 13. Qc3 {[%emt 0:00:00]} Bxd3 {[%emt 0:08:28]} 14. Qxd3 {[%emt 0:00:00]} Nxc4 {[%emt 0:00:13]} 15. Nxc4 {[%emt 0:00:00]} dxc4 {[%emt 0:00:30]} 16. Qxc4 {[%emt 0:00:00]} O-O {[%emt 0:00:37]} 17. Rfc1 {[%emt 0:00:00]} Bxg3 {[%emt 0:00:07]} 18. hxg3 {[%emt 0:00:00]} c6 {[%emt 0:00:25]} 19. b4 {[%emt 0:00:00]} Qd7 {[%emt 0:05:47]} 20. Qc5 {[%emt 0:00:00]} a6 {[%emt 0:00:36]} 21. a4 {[%emt 0:00:00]} Rfc8 {[%emt 0:01:46]} 22. Qb6 {[%emt 0:00:00]} g6 {[%emt 0:02:32]} 23. Rc5 {[%emt 0:00:00]} Kf8 {[%emt 0:11:50]} 24. Rac1 {[%emt 0:00:00]} Qd8 {[%emt 0:04:25]} 25. Qxd8+ {[%emt 0:00:00]} Rxd8 {[%emt 0:00:03]} 26. g4 {[%emt 0:00:00]} Ke7 {[%emt 0:01:37]} 27. Kf1 {[%emt 0:00:00]} Rd5 {[%emt 0:01:00]} 28. Ke2 {[%emt 0:00:00]} Rxc5 {[%emt 0:04:52]} 29. Rxc5 {[%emt 0:00:00]} Kd6 {[%emt 0:01:11]} 30. Kd3 {[%emt 0:00:00]} Rh8 {[%emt 0:03:20]} 31. Rc1 {[%emt 0:00:00]} h5 {[%emt 0:00:06]} 32. Rh1 {[%emt 0:00:00]} f5 {[%emt 0:00:08]} 33. gxf5 {[%emt 0:13:00]} gxf5 {[%emt 0:01:05]} 34. Rh4 {[%emt 0:00:00]} a5 {[%emt 0:00:53]} 35. bxa5 {[%emt 0:00:00]} Ra8 {[%emt 0:00:03]} 36. Rxh5 {[%emt 0:00:00]} Rxa5 {[%emt 0:00:04]} 37. g4 {[%emt 0:00:00]} Rxa4 {[%emt 0:01:43]} 38. gxf5 {[%emt 0:00:00]} Ra5 {[%emt 0:00:27]} 39. e4 {[%emt 0:00:00]} exf5 {[%emt 0:01:33]} 40. Rh6+ {[%emt 0:00:00]} Ke7 {[%emt 0:00:47]} 41. e5 {[%emt 0:26:00]} Rd5 {[%emt 0:31:33]} 42. Rh7+ {[%emt 0:06:18]} Ke6 {[%emt 0:00:13]} 43. Rxb7 {[%emt 0:01:53]} c5 {[%emt 0:00:07]} 44. Rb6+ {[%emt 0:01:19] Rxd4+ f4+} Ke7 {[%emt 0:04:05]} 45. Ke3 {[%emt 0:00:30] Rb4 Rf6 Rb3+ Ke2 Ra3 Kf3} c4 {[%emt 0:00:30] Kg2 c3 Rxf5 c2} 46. Rf6 Kd7 {[%emt 0:00:30]} 47. Rc6 Ke7 {[%emt 0:00:30]} 48. Kf3 {[%emt 0:01:30] Ra2 Rc4 Ke6 Kg4} Rc5 {[%emt 0:00:30]} 49. Kf4 {[%emt 0:00:30]} 0-1